[Event "Early-Titled-Tuesday-Blitz-January-16-2024"]
[Site "Chess.com"]
[Date "2024.01.16"]
[Round "1"]
[White "KarstenHansch"]
[Black "alvarorodriguezavila"]
[Result "1-0"]
[WhiteElo "2650"]
[BlackElo "2313"]
[TimeControl "180+1"]
[EndTime "8:06:31 PST"]
[Termination "KarstenHansch won by resignation"]

1. e4 {[%clk 0:03:00.9]} 1... c5 {[%clk 0:02:59.5]} 2. Nf3 {[%clk 0:03:01.2]}
2... g6 {[%clk 0:02:59.6]} 3. c3 {[%clk 0:02:50.4]} 3... Bg7 {[%clk 0:02:59.2]}
4. d4 {[%clk 0:02:50.7]} 4... cxd4 {[%clk 0:03:00.1]} 5. cxd4 {[%clk 0:02:50.8]}
5... d5 {[%clk 0:03:00.8]} 6. e5 {[%clk 0:02:50.6]} 6... Nc6 {[%clk 0:03:00.9]}
7. Nc3 {[%clk 0:02:50.4]} 7... Bg4 {[%clk 0:03:01.3]} 8. Bb5 {[%clk 0:02:49.9]}
8... Rc8 {[%clk 0:03:00]} 9. O-O {[%clk 0:02:48.3]} 9... e6 {[%clk 0:02:59.9]}
10. h3 {[%clk 0:02:44.9]} 10... Bxf3 {[%clk 0:02:59.7]} 11. Qxf3 {[%clk
0:02:45.3]} 11... Ne7 {[%clk 0:03:00.3]} 12. Bg5 {[%clk 0:02:43.9]} 12... O-O
{[%clk 0:03:00.7]} 13. Bxc6 {[%clk 0:02:42.8]} 13... Rxc6 {[%clk 0:02:59.8]} 14.
Bxe7 {[%clk 0:02:43.5]} 14... Qxe7 {[%clk 0:02:59.6]} 15. Qd3 {[%clk 0:02:42.1]}
15... Rfc8 {[%clk 0:02:52.5]} 16. Nb5 {[%clk 0:02:34.5]} 16... Bf8 {[%clk
0:02:34.1]} 17. Nxa7 {[%clk 0:02:25.2]} 17... Qb4 {[%clk 0:01:58.7]} 18. Nxc8
{[%clk 0:02:21.4]} 18... Rxc8 {[%clk 0:01:59.3]} 19. a3 {[%clk 0:01:48.5]} 19...
Qxb2 {[%clk 0:01:42.5]} 20. Rfb1 {[%clk 0:01:43]} 20... Qc3 {[%clk 0:01:42.9]}
21. Qxc3 {[%clk 0:01:40.9]} 21... Rxc3 {[%clk 0:01:43.8]} 22. a4 {[%clk
0:01:41.1]} 22... Rc7 {[%clk 0:01:26.1]} 23. Rc1 {[%clk 0:01:36.9]} 23... Rd7
{[%clk 0:01:18]} 24. Rab1 {[%clk 0:01:33]} 24... Kg7 {[%clk 0:01:08.8]} 25. Rc8
{[%clk 0:01:32.3]} 25... h5 {[%clk 0:00:37.9]} 26. Rb8 {[%clk 0:01:18.8]} 26...
Rc7 {[%clk 0:00:38]} 27. R8xb7 {[%clk 0:01:19.1]} 27... Rc4 {[%clk 0:00:38.6]}
28. Ra1 {[%clk 0:01:19.4]} 28... Rxd4 {[%clk 0:00:27.9]} 29. a5 {[%clk
0:01:19.5]} 29... Rd2 {[%clk 0:00:28.5]} 30. a6 {[%clk 0:01:19.7]} 30... Bc5
{[%clk 0:00:29.1]} 31. a7 {[%clk 0:01:20]} 31... Rxf2 {[%clk 0:00:20.6]} 32.
a8=Q {[%clk 0:01:11.2]} 32... Ra2+ {[%clk 0:00:16.2]} 33. Kh1 {[%clk 0:01:09.6]}
33... Rxa8 {[%clk 0:00:16.8]} 34. Rxa8 {[%clk 0:01:10]} 34... Bd4 {[%clk
0:00:17.4]} 35. Rd8 {[%clk 0:01:05.8]} 35... Bxe5 {[%clk 0:00:17.4]} 36. Rdd7
{[%clk 0:01:06.5]} 36... Kh6 {[%clk 0:00:14.7]} 37. Rxf7 {[%clk 0:01:06.5]}
37... Kg5 {[%clk 0:00:13.3]} 38. Rbe7 {[%clk 0:01:05.7]} 38... d4 {[%clk
0:00:11.6]} 39. Rxe6 {[%clk 0:01:05.9]} 39... Bf4 {[%clk 0:00:11.9]} 40. Re4
{[%clk 0:01:02.6]} 40... Be3 {[%clk 0:00:11.8]} 41. Rd7 {[%clk 0:01:02]} 1-0

[Event "Early-Titled-Tuesday-Blitz-January-16-2024"]
[Site "Chess.com"]
[Date "2024.01.16"]
[Round "1"]
[White "Schattman"]
[Black "ContrVersia"]
[Result "0-1"]
[WhiteElo "2454"]
[BlackElo "2840"]
[TimeControl "180+1"]
[EndTime "8:06:35 PST"]
[Termination "ContrVersia won by resignation"]

1. d4 {[%clk 0:03:00.9]} 1... Nf6 {[%clk 0:02:55.8]} 2. Nf3 {[%clk 0:03:01.1]}
2... c5 {[%clk 0:02:55.4]} 3. d5 {[%clk 0:03:00.9]} 3... b5 {[%clk 0:02:55.5]}
4. e4 {[%clk 0:02:59.6]} 4... Nxe4 {[%clk 0:02:53.5]} 5. Bd3 {[%clk 0:02:55.5]}
5... Qa5+ {[%clk 0:02:49.9]} 6. c3 {[%clk 0:02:52.3]} 6... Nf6 {[%clk
0:02:49.9]} 7. O-O {[%clk 0:02:51.8]} 7... Bb7 {[%clk 0:02:48.5]} 8. c4 {[%clk
0:02:47.7]} 8... bxc4 {[%clk 0:02:36.9]} 9. Bxc4 {[%clk 0:02:47.2]} 9... e6
{[%clk 0:02:37.1]} 10. dxe6 {[%clk 0:02:40.7]} 10... fxe6 {[%clk 0:02:36.3]} 11.
Ng5 {[%clk 0:02:40.8]} 11... Be7 {[%clk 0:02:32.4]} 12. Bxe6 {[%clk 0:02:39.2]}
12... dxe6 {[%clk 0:02:29.9]} 13. Nxe6 {[%clk 0:02:39]} 13... g6 {[%clk
0:01:26.8]} 14. Bf4 {[%clk 0:02:26.9]} 14... Nbd7 {[%clk 0:00:58.6]} 15. Nc3
{[%clk 0:02:20.9]} 15... Qb6 {[%clk 0:00:53.5]} 16. Re1 {[%clk 0:02:04]} 16...
h6 {[%clk 0:00:48.1]} 17. Nb5 {[%clk 0:01:21.4]} 17... Kf7 {[%clk 0:00:44.7]}
18. Bd6 {[%clk 0:01:11.7]} 18... Qxb5 {[%clk 0:00:36.3]} 19. Bxe7 {[%clk
0:01:09.5]} 19... Rhe8 {[%clk 0:00:33.4]} 20. Bxf6 {[%clk 0:01:04.4]} 20... Nxf6
{[%clk 0:00:32.6]} 21. Nf4 {[%clk 0:00:45.8]} 21... Rad8 {[%clk 0:00:31.3]} 22.
Qc2 {[%clk 0:00:43.3]} 22... Be4 {[%clk 0:00:30.5]} 23. Qc3 {[%clk 0:00:38.6]}
23... g5 {[%clk 0:00:25.6]} 24. Nh3 {[%clk 0:00:34.9]} 24... Qb4 {[%clk
0:00:25.2]} 25. Qg3 {[%clk 0:00:32.1]} 25... Bg6 {[%clk 0:00:24.6]} 26. Rxe8
{[%clk 0:00:29.1]} 26... Rxe8 {[%clk 0:00:25.5]} 27. Rf1 {[%clk 0:00:28.5]}
27... Qd4 {[%clk 0:00:20.3]} 28. Qc7+ {[%clk 0:00:27.5]} 28... Re7 {[%clk
0:00:20.3]} 29. Qd8 {[%clk 0:00:26.8]} 29... Qxd8 {[%clk 0:00:19.5]} 0-1

[Event "Early-Titled-Tuesday-Blitz-January-16-2024"]
[Site "Chess.com"]
[Date "2024.01.16"]
[Round "1"]
[White "szachmistrz2500"]
[Black "Iball95"]
[Result "0-1"]
[WhiteElo "2400"]
[BlackElo "2738"]
[TimeControl "180+1"]
[EndTime "8:06:38 PST"]
[Termination "Iball95 won on time"]

1. f3 {[%clk 0:03:00.9]} 1... e5 {[%clk 0:02:58.7]} 2. Nh3 {[%clk 0:02:52.7]}
2... d5 {[%clk 0:02:56.7]} 3. Nf2 {[%clk 0:02:52.5]} 3... Nf6 {[%clk 0:02:55.4]}
4. e3 {[%clk 0:02:44.3]} 4... Nc6 {[%clk 0:02:53.9]} 5. b3 {[%clk 0:02:40.6]}
5... Bc5 {[%clk 0:02:52]} 6. Bb2 {[%clk 0:02:38.4]} 6... O-O {[%clk 0:02:52]} 7.
Bb5 {[%clk 0:02:36.4]} 7... Re8 {[%clk 0:02:50.8]} 8. O-O {[%clk 0:02:35.1]}
8... a6 {[%clk 0:02:47.7]} 9. Bxc6 {[%clk 0:02:32.1]} 9... bxc6 {[%clk
0:02:48.6]} 10. d4 {[%clk 0:02:30.2]} 10... exd4 {[%clk 0:02:49.5]} 11. exd4
{[%clk 0:02:28.4]} 11... Bd6 {[%clk 0:02:48.4]} 12. Nc3 {[%clk 0:02:11.3]} 12...
Nh5 {[%clk 0:02:42.6]} 13. Nd3 {[%clk 0:01:39.5]} 13... Qh4 {[%clk 0:02:14.1]}
14. f4 {[%clk 0:01:39.1]} 14... Nxf4 {[%clk 0:02:00.1]} 15. Ne5 {[%clk
0:01:00.2]} 15... Bxe5 {[%clk 0:00:47.1]} 16. dxe5 {[%clk 0:00:59.4]} 16... d4
{[%clk 0:00:47.7]} 17. g3 {[%clk 0:00:47.1]} 17... Nh3+ {[%clk 0:00:45]} 18. Kg2
{[%clk 0:00:40.4]} 18... Qd8 {[%clk 0:00:45.2]} 19. Qf3 {[%clk 0:00:21.9]} 19...
Ng5 {[%clk 0:00:37.5]} 20. Qxc6 {[%clk 0:00:21.5]} 20... Bh3+ {[%clk 0:00:37.9]}
21. Kg1 {[%clk 0:00:21.2]} 21... Bxf1 {[%clk 0:00:38.3]} 22. Rxf1 {[%clk
0:00:20.4]} 22... dxc3 {[%clk 0:00:37.7]} 23. Bxc3 {[%clk 0:00:20.4]} 23... Qe7
{[%clk 0:00:34]} 0-1

[Event "Early-Titled-Tuesday-Blitz-January-16-2024"]
[Site "Chess.com"]
[Date "2024.01.16"]
[Round "1"]
[White "Vesper2018"]
[Black "shirovin"]
[Result "1-0"]
[WhiteElo "2559"]
[BlackElo "1987"]
[TimeControl "180+1"]
[EndTime "8:06:39 PST"]
[Termination "Vesper2018 won on time"]

1. e4 {[%clk 0:03:00.9]} 1... c5 {[%clk 0:02:59.2]} 2. Nc3 {[%clk 0:03:00.4]}
2... d6 {[%clk 0:02:58.4]} 3. Nge2 {[%clk 0:02:59.5]} 3... Nf6 {[%clk
0:02:56.7]} 4. d4 {[%clk 0:02:58.9]} 4... cxd4 {[%clk 0:02:57]} 5. Nxd4 {[%clk
0:02:59.2]} 5... a6 {[%clk 0:02:57.4]} 6. Nb3 {[%clk 0:02:58.3]} 6... e6 {[%clk
0:02:46.4]} 7. g4 {[%clk 0:02:51.7]} 7... h6 {[%clk 0:02:44.6]} 8. Bg2 {[%clk
0:02:41.2]} 8... Be7 {[%clk 0:02:43.6]} 9. Be3 {[%clk 0:02:39.3]} 9... Nc6
{[%clk 0:02:32.5]} 10. Qe2 {[%clk 0:02:38.2]} 10... Ne5 {[%clk 0:02:27.6]} 11.
h3 {[%clk 0:02:22.3]} 11... Qc7 {[%clk 0:02:26.4]} 12. Nd2 {[%clk 0:02:13.4]}
12... Bd7 {[%clk 0:02:22.2]} 13. f4 {[%clk 0:02:12.9]} 13... Nc6 {[%clk
0:02:19.6]} 14. O-O-O {[%clk 0:02:02.6]} 14... Rc8 {[%clk 0:02:16.4]} 15. Kb1
{[%clk 0:02:01.2]} 15... b5 {[%clk 0:02:06.6]} 16. Nb3 {[%clk 0:01:59.9]} 16...
O-O {[%clk 0:01:42.2]} 17. g5 {[%clk 0:01:58.1]} 17... hxg5 {[%clk 0:01:40.3]}
18. fxg5 {[%clk 0:01:58]} 18... Nh5 {[%clk 0:01:40.2]} 19. Qxh5 {[%clk
0:01:56.8]} 19... Ne5 {[%clk 0:01:38.8]} 20. Nd4 {[%clk 0:01:43.4]} 20... Nc4
{[%clk 0:01:33.5]} 21. Bc1 {[%clk 0:01:40.3]} 21... Na3+ {[%clk 0:01:17.5]} 22.
bxa3 {[%clk 0:01:36.6]} 22... Qxc3 {[%clk 0:01:16]} 23. Bb2 {[%clk 0:01:36.9]}
23... Qc4 {[%clk 0:01:05.7]} 24. Rd2 {[%clk 0:01:32.9]} 24... b4 {[%clk
0:00:58.7]} 25. a4 {[%clk 0:01:27.1]} 25... Bxa4 {[%clk 0:00:46.9]} 26. Bf1
{[%clk 0:01:18.5]} 26... Qc5 {[%clk 0:00:38.5]} 27. Bd3 {[%clk 0:01:17.8]} 27...
g6 {[%clk 0:00:32.7]} 28. Qf3 {[%clk 0:01:05.5]} 28... Bb5 {[%clk 0:00:19.1]}
29. h4 {[%clk 0:01:02.3]} 29... e5 {[%clk 0:00:17.7]} 30. Nb3 {[%clk 0:01:00.5]}
30... Qc6 {[%clk 0:00:15.4]} 31. h5 {[%clk 0:00:58.8]} 31... Qc7 {[%clk
0:00:13.5]} 32. hxg6 {[%clk 0:00:53.3]} 32... Bxd3 {[%clk 0:00:09.7]} 33. Rh8+
{[%clk 0:00:49.6]} 33... Kxh8 {[%clk 0:00:06.3]} 34. Qh3+ {[%clk 0:00:49.6]} 1-0

[Event "Early-Titled-Tuesday-Blitz-January-16-2024"]
[Site "Chess.com"]
[Date "2024.01.16"]
[Round "1"]
[White "DreamsAreFake"]
[Black "ilya2700"]
[Result "1-0"]
[WhiteElo "2742"]
[BlackElo "2403"]
[TimeControl "180+1"]
[EndTime "8:06:41 PST"]
[Termination "DreamsAreFake won by resignation"]

1. Nf3 {[%clk 0:02:58.5]} 1... Nf6 {[%clk 0:02:59.6]} 2. g3 {[%clk 0:02:57.9]}
2... d5 {[%clk 0:02:59.8]} 3. Bg2 {[%clk 0:02:58.5]} 3... e6 {[%clk 0:03:00.4]}
4. O-O {[%clk 0:02:58]} 4... Be7 {[%clk 0:03:01]} 5. b3 {[%clk 0:02:58.7]} 5...
O-O {[%clk 0:03:01.5]} 6. Bb2 {[%clk 0:02:59.4]} 6... Nbd7 {[%clk 0:03:02]} 7.
e3 {[%clk 0:03:00.1]} 7... b6 {[%clk 0:03:02.3]} 8. c4 {[%clk 0:03:00.8]} 8...
Bb7 {[%clk 0:03:01.7]} 9. d3 {[%clk 0:03:00.9]} 9... c5 {[%clk 0:03:01.9]} 10.
Nbd2 {[%clk 0:03:01.4]} 10... Rc8 {[%clk 0:03:02]} 11. Qe2 {[%clk 0:03:02]}
11... Re8 {[%clk 0:03:01.8]} 12. e4 {[%clk 0:03:02.4]} 12... d4 {[%clk
0:02:55.8]} 13. Ne1 {[%clk 0:03:00.6]} 13... e5 {[%clk 0:02:52]} 14. f4 {[%clk
0:02:59.8]} 14... Qc7 {[%clk 0:02:45.9]} 15. Nc2 {[%clk 0:02:44]} 15... Bd6
{[%clk 0:02:44.2]} 16. f5 {[%clk 0:02:40.9]} 16... a6 {[%clk 0:02:38.3]} 17. h4
{[%clk 0:02:37.2]} 17... h5 {[%clk 0:02:34.7]} 18. Bf3 {[%clk 0:02:26.8]} 18...
g6 {[%clk 0:02:34.5]} 19. Bg2 {[%clk 0:02:18]} 19... b5 {[%clk 0:02:33]} 20. Bh3
{[%clk 0:02:16.2]} 20... bxc4 {[%clk 0:02:18.7]} 21. Nxc4 {[%clk 0:02:16]} 21...
Bc6 {[%clk 0:02:08.5]} 22. Rf2 {[%clk 0:02:08.2]} 22... Bb5 {[%clk 0:01:49.3]}
23. N2a3 {[%clk 0:01:51.1]} 23... Kg7 {[%clk 0:01:37.1]} 24. Raf1 {[%clk
0:01:49]} 24... Rf8 {[%clk 0:01:28.9]} 25. Bc1 {[%clk 0:01:29.4]} 25... Rb8
{[%clk 0:01:14]} 26. Qd2 {[%clk 0:01:21.6]} 26... Ng8 {[%clk 0:01:06.3]} 27.
fxg6 {[%clk 0:01:11.4]} 27... fxg6 {[%clk 0:01:07.2]} 28. Be6 {[%clk 0:01:12.1]}
28... Ndf6 {[%clk 0:00:56.1]} 29. Qg5 {[%clk 0:01:07.4]} 29... Rbe8 {[%clk
0:00:43.4]} 30. Rxf6 {[%clk 0:00:59.1]} 30... Rxf6 {[%clk 0:00:37.7]} 31. Rxf6
{[%clk 0:00:55.6]} 31... Re7 {[%clk 0:00:16.3]} 32. Qxg6+ {[%clk 0:00:51.3]} 1-0

[Event "Early-Titled-Tuesday-Blitz-January-16-2024"]
[Site "Chess.com"]
[Date "2024.01.16"]
[Round "1"]
[White "GMJustin"]
[Black "OriTaichman"]
[Result "0-1"]
[WhiteElo "2324"]
[BlackElo "2660"]
[TimeControl "180+1"]
[EndTime "8:06:42 PST"]
[Termination "OriTaichman won on time"]

1. e4 {[%clk 0:02:35.1]} 1... c5 {[%clk 0:02:53.9]} 2. Nf3 {[%clk 0:02:33.6]}
2... Nc6 {[%clk 0:02:52.6]} 3. d4 {[%clk 0:02:32]} 3... cxd4 {[%clk 0:02:53.5]}
4. Nxd4 {[%clk 0:02:31.5]} 4... d5 {[%clk 0:02:52.5]} 5. exd5 {[%clk 0:02:23]}
5... Qxd5 {[%clk 0:02:52.3]} 6. Be3 {[%clk 0:02:22]} 6... e6 {[%clk 0:02:50.1]}
7. Nc3 {[%clk 0:02:09.9]} 7... Bb4 {[%clk 0:02:49.6]} 8. Nb5 {[%clk 0:02:04.5]}
8... Qe5 {[%clk 0:02:46.2]} 9. a3 {[%clk 0:01:50.5]} 9... Be7 {[%clk 0:02:44.3]}
10. Qd2 {[%clk 0:01:36.5]} 10... a6 {[%clk 0:02:42.7]} 11. Nd4 {[%clk
0:01:34.8]} 11... Bd7 {[%clk 0:02:37.5]} 12. O-O-O {[%clk 0:01:30.1]} 12... Nf6
{[%clk 0:02:34.9]} 13. Bf4 {[%clk 0:01:06.6]} 13... Qxd4 {[%clk 0:02:28.7]} 14.
Qxd4 {[%clk 0:01:06.4]} 14... Nxd4 {[%clk 0:02:29.6]} 15. Rxd4 {[%clk
0:01:06.3]} 15... Bc6 {[%clk 0:02:30]} 16. f3 {[%clk 0:01:04.8]} 16... Bc5
{[%clk 0:02:14.8]} 17. Rd1 {[%clk 0:00:57.3]} 17... Nh5 {[%clk 0:01:58.8]} 18.
Bd6 {[%clk 0:00:54.9]} 18... Bxd6 {[%clk 0:01:56.6]} 19. Rxd6 {[%clk 0:00:55.8]}
19... Ke7 {[%clk 0:01:57]} 20. Rd2 {[%clk 0:00:54.8]} 20... Rhd8 {[%clk
0:01:52.7]} 21. Bc4 {[%clk 0:00:45.4]} 21... Rxd2 {[%clk 0:01:42]} 22. Kxd2
{[%clk 0:00:46.3]} 22... Nf4 {[%clk 0:01:32.6]} 23. g3 {[%clk 0:00:41.3]} 23...
Ng6 {[%clk 0:01:28.8]} 24. Rf1 {[%clk 0:00:38.1]} 24... Rd8+ {[%clk 0:01:14.6]}
25. Ke3 {[%clk 0:00:37]} 25... e5 {[%clk 0:01:12.5]} 26. Rd1 {[%clk 0:00:31.9]}
26... Rxd1 {[%clk 0:01:10.8]} 27. Nxd1 {[%clk 0:00:32.8]} 27... f5 {[%clk
0:01:09.7]} 28. f4 {[%clk 0:00:27.9]} 28... Kf6 {[%clk 0:01:06.5]} 29. Nc3
{[%clk 0:00:24.6]} 29... Ne7 {[%clk 0:01:05.8]} 30. a4 {[%clk 0:00:22.6]} 30...
a5 {[%clk 0:01:02.1]} 31. Bb5 {[%clk 0:00:02.8]} 31... Nd5+ {[%clk 0:01:01.7]}
32. Nxd5+ {[%clk 0:00:02.4]} 32... Bxd5 {[%clk 0:01:02.6]} 33. c3 {[%clk
0:00:00.9]} 33... b6 {[%clk 0:00:58.8]} 34. b4 {[%clk 0:00:00.7]} 34... g5
{[%clk 0:00:55.8]} 0-1

[Event "Early-Titled-Tuesday-Blitz-January-16-2024"]
[Site "Chess.com"]
[Date "2024.01.16"]
[Round "1"]
[White "crazy_but_lazy"]
[Black "remyrushbrooke"]
[Result "1-0"]
[WhiteElo "2592"]
[BlackElo "2207"]
[TimeControl "180+1"]
[EndTime "8:06:42 PST"]
[Termination "crazy_but_lazy won by resignation"]

1. c4 {[%clk 0:02:58.3]} 1... f5 {[%clk 0:02:59.1]} 2. d4 {[%clk 0:02:57.1]}
2... Nf6 {[%clk 0:02:59.1]} 3. Nc3 {[%clk 0:02:57.7]} 3... e6 {[%clk 0:02:57.5]}
4. Bf4 {[%clk 0:02:55.1]} 4... Be7 {[%clk 0:02:56.7]} 5. e3 {[%clk 0:02:55.5]}
5... O-O {[%clk 0:02:56.3]} 6. Bd3 {[%clk 0:02:56.1]} 6... d6 {[%clk 0:02:55.7]}
7. Nf3 {[%clk 0:02:48.8]} 7... Nc6 {[%clk 0:02:55.3]} 8. h3 {[%clk 0:02:48.4]}
8... Qe8 {[%clk 0:02:52.1]} 9. g4 {[%clk 0:02:45.7]} 9... Bd8 {[%clk 0:02:27.4]}
10. gxf5 {[%clk 0:02:35.6]} 10... e5 {[%clk 0:02:20.5]} 11. dxe5 {[%clk
0:02:24.8]} 11... dxe5 {[%clk 0:02:21.4]} 12. Bg5 {[%clk 0:02:21.2]} 12... e4
{[%clk 0:02:18.6]} 13. Bxf6 {[%clk 0:02:21.5]} 13... exd3 {[%clk 0:02:15.5]} 14.
Bd4 {[%clk 0:02:00.9]} 14... Bxf5 {[%clk 0:02:14.6]} 15. Rg1 {[%clk 0:02:01.5]}
15... Bf6 {[%clk 0:02:12.9]} 16. Bxf6 {[%clk 0:01:56.1]} 16... Rxf6 {[%clk
0:02:13.8]} 17. Nd5 {[%clk 0:01:54.9]} 17... Rf7 {[%clk 0:02:14.3]} 18. Nh4
{[%clk 0:01:45.2]} 18... Be4 {[%clk 0:02:06.2]} 19. Qg4 {[%clk 0:01:45.6]} 19...
Ne5 {[%clk 0:01:50.2]} 20. Nf6+ {[%clk 0:00:48.3]} 20... Kh8 {[%clk 0:01:39.7]}
21. Nxe8 {[%clk 0:00:40.2]} 21... d2+ {[%clk 0:01:27.2]} 22. Kxd2 {[%clk
0:00:33.8]} 22... Rd8+ {[%clk 0:01:27.3]} 23. Kc3 {[%clk 0:00:20.7]} 23... Rd3+
{[%clk 0:01:21.3]} 24. Kb4 {[%clk 0:00:21.2]} 24... Nc6+ {[%clk 0:00:34.6]} 25.
Ka4 {[%clk 0:00:21.3]} 1-0

[Event "Early-Titled-Tuesday-Blitz-January-16-2024"]
[Site "Chess.com"]
[Date "2024.01.16"]
[Round "1"]
[White "hmatyi07"]
[Black "slorovel"]
[Result "0-1"]
[WhiteElo "2188"]
[BlackElo "2584"]
[TimeControl "180+1"]
[EndTime "8:06:45 PST"]
[Termination "slorovel won by checkmate"]

1. e4 {[%clk 0:02:59.3]} 1... e6 {[%clk 0:02:58.9]} 2. d3 {[%clk 0:02:57.7]}
2... d5 {[%clk 0:02:59.8]} 3. Nd2 {[%clk 0:02:57.6]} 3... Nc6 {[%clk 0:03:00.1]}
4. g3 {[%clk 0:02:57.7]} 4... Nf6 {[%clk 0:03:00.2]} 5. Bg2 {[%clk 0:02:57.9]}
5... dxe4 {[%clk 0:03:00.5]} 6. dxe4 {[%clk 0:02:57.6]} 6... e5 {[%clk
0:03:00.5]} 7. Ngf3 {[%clk 0:02:55.9]} 7... Bc5 {[%clk 0:03:00.5]} 8. O-O {[%clk
0:02:56]} 8... O-O {[%clk 0:03:00.2]} 9. c3 {[%clk 0:02:55]} 9... a5 {[%clk
0:03:00.3]} 10. Qc2 {[%clk 0:02:54.1]} 10... b6 {[%clk 0:03:00.3]} 11. Rd1
{[%clk 0:02:51.3]} 11... Qe7 {[%clk 0:03:00.4]} 12. Nf1 {[%clk 0:02:50.1]} 12...
Be6 {[%clk 0:02:59.7]} 13. Be3 {[%clk 0:02:48]} 13... h6 {[%clk 0:02:57.6]} 14.
Rd2 {[%clk 0:02:41.6]} 14... a4 {[%clk 0:02:57.6]} 15. Bxc5 {[%clk 0:02:36.6]}
15... Qxc5 {[%clk 0:02:57.2]} 16. Ne3 {[%clk 0:02:35.5]} 16... Ne7 {[%clk
0:02:34.6]} 17. Nh4 {[%clk 0:02:17.8]} 17... Ra7 {[%clk 0:02:20.1]} 18. Nhf5
{[%clk 0:02:14.6]} 18... Nxf5 {[%clk 0:02:19.3]} 19. Nxf5 {[%clk 0:02:14.3]}
19... Bxf5 {[%clk 0:02:18.9]} 20. exf5 {[%clk 0:02:14.6]} 20... b5 {[%clk
0:02:15.4]} 21. Rad1 {[%clk 0:02:10.9]} 21... Re8 {[%clk 0:02:10.2]} 22. Qd3
{[%clk 0:01:44.6]} 22... Ra6 {[%clk 0:01:59.6]} 23. Qe3 {[%clk 0:01:40.2]} 23...
Qf8 {[%clk 0:01:46.7]} 24. Qd3 {[%clk 0:01:30.9]} 24... e4 {[%clk 0:01:44.2]}
25. Qxb5 {[%clk 0:01:28.9]} 25... Rb6 {[%clk 0:01:36.1]} 26. Qxa4 {[%clk
0:01:26.2]} 26... e3 {[%clk 0:01:36.3]} 27. fxe3 {[%clk 0:01:24.8]} 27... Qc5
{[%clk 0:01:34.6]} 28. Qd4 {[%clk 0:01:21]} 28... Qxf5 {[%clk 0:01:34.5]} 29. e4
{[%clk 0:01:06.9]} 29... Qg5 {[%clk 0:01:33.8]} 30. c4 {[%clk 0:00:57.7]} 30...
Rd6 {[%clk 0:01:32.8]} 31. Qc3 {[%clk 0:00:54.8]} 31... Qc5+ {[%clk 0:01:26.3]}
32. Kh1 {[%clk 0:00:54.4]} 32... Nxe4 {[%clk 0:01:25.1]} 33. Bxe4 {[%clk
0:00:50.7]} 33... Rxe4 {[%clk 0:01:23.6]} 34. Rxd6 {[%clk 0:00:50]} 34... cxd6
{[%clk 0:01:24.2]} 35. Qd3 {[%clk 0:00:36.2]} 35... Re6 {[%clk 0:01:00.5]} 36.
Qd5 {[%clk 0:00:34.9]} 36... Qf2 {[%clk 0:00:57.4]} 37. c5 {[%clk 0:00:08.6]}
37... Re2 {[%clk 0:00:53.7]} 38. Qh5 {[%clk 0:00:02.8]} 38... Qg2# {[%clk
0:00:53.3]} 0-1

[Event "Early-Titled-Tuesday-Blitz-January-16-2024"]
[Site "Chess.com"]
[Date "2024.01.16"]
[Round "1"]
[White "maurovargas01"]
[Black "Grossboss19"]
[Result "0-1"]
[WhiteElo "1856"]
[BlackElo "2550"]
[TimeControl "180+1"]
[EndTime "8:06:49 PST"]
[Termination "Grossboss19 won on time"]

1. e4 {[%clk 0:02:59]} 1... c5 {[%clk 0:02:59.4]} 2. Nc3 {[%clk 0:02:57.7]} 2...
g6 {[%clk 0:02:56.6]} 3. f4 {[%clk 0:02:58.6]} 3... Bg7 {[%clk 0:02:56.6]} 4.
Nf3 {[%clk 0:02:58.3]} 4... Nc6 {[%clk 0:02:57.2]} 5. Bb5 {[%clk 0:02:58.4]}
5... Nd4 {[%clk 0:02:57.2]} 6. Nxd4 {[%clk 0:02:55.2]} 6... cxd4 {[%clk
0:02:57]} 7. Ne2 {[%clk 0:02:54.2]} 7... a6 {[%clk 0:02:55.6]} 8. Bc4 {[%clk
0:02:52.2]} 8... e6 {[%clk 0:02:54.4]} 9. a4 {[%clk 0:02:48.4]} 9... Ne7 {[%clk
0:02:53.7]} 10. d3 {[%clk 0:02:35.6]} 10... d5 {[%clk 0:02:53.3]} 11. Bb3 {[%clk
0:02:32.2]} 11... O-O {[%clk 0:02:52.2]} 12. e5 {[%clk 0:02:30.4]} 12... Nc6
{[%clk 0:02:49.8]} 13. O-O {[%clk 0:02:29.1]} 13... f6 {[%clk 0:02:45]} 14. exf6
{[%clk 0:02:24.8]} 14... Bxf6 {[%clk 0:02:45.6]} 15. Qe1 {[%clk 0:02:24.4]}
15... Bd7 {[%clk 0:02:44.8]} 16. Bd2 {[%clk 0:02:10.3]} 16... Rc8 {[%clk
0:02:43.4]} 17. g4 {[%clk 0:01:57.5]} 17... Bh4 {[%clk 0:02:33.5]} 18. Ng3
{[%clk 0:01:53.2]} 18... Qe7 {[%clk 0:02:28.6]} 19. Qe2 {[%clk 0:01:40.6]} 19...
Nb4 {[%clk 0:02:18.3]} 20. Rac1 {[%clk 0:01:33.7]} 20... a5 {[%clk 0:02:17.8]}
21. Qe5 {[%clk 0:01:14.9]} 21... Bf6 {[%clk 0:02:09.2]} 22. Qe1 {[%clk
0:01:06.2]} 22... Qd6 {[%clk 0:02:05.5]} 23. f5 {[%clk 0:00:52.6]} 23... gxf5
{[%clk 0:01:41.4]} 24. gxf5 {[%clk 0:00:46.7]} 24... Be5 {[%clk 0:01:29.8]} 25.
fxe6 {[%clk 0:00:37.7]} 25... Bxe6 {[%clk 0:01:30]} 26. Bh6 {[%clk 0:00:33.8]}
26... Rxf1+ {[%clk 0:01:26.4]} 27. Qxf1 {[%clk 0:00:23.5]} 27... Bxg3 {[%clk
0:01:23.8]} 28. Qg2 {[%clk 0:00:20.1]} 28... Kh8 {[%clk 0:01:16.6]} 29. hxg3
{[%clk 0:00:17]} 29... Rg8 {[%clk 0:01:15]} 30. Bf4 {[%clk 0:00:16.7]} 30... Qe7
{[%clk 0:00:48.4]} 31. Be5+ {[%clk 0:00:16.1]} 31... Rg7 {[%clk 0:00:49.1]} 32.
Bxg7+ {[%clk 0:00:09.7]} 32... Kxg7 {[%clk 0:00:50]} 33. Re1 {[%clk 0:00:08.2]}
33... Qf6 {[%clk 0:00:47.9]} 0-1